Body,Body Name,Service Label,Service Code,Expenditure Category,Expenditure Code,Narrative,Date,Transaction Number,Amount,Capital/Revenue/Precept,Supplier Name,Supplier ID
32UB,Boston Borough Council,Grounds Maintenance,4401,Materials,3006,"PADLOCKS, SHOVELS & CHAINS",30/06/2022,212513,547.9,Revenue,Craftwork Engineering & Fabrication,9713
32UB,Boston Borough Council,Vehicle Holding Account,2206,Tyres,2208,FLEET MONTHLY CHARGE - FEB 22,30/06/2022,232821,2838.93,Revenue,B A Bush & Son Ltd,12196
32UB,Boston Borough Council,Vehicle Holding Account,2206,Tyres,2208,FLEET MONTHLY CHARGE - MARCH 22,30/06/2022,233502,2838.93,Revenue,B A Bush & Son Ltd,12196
32UB,Boston Borough Council,Vehicle Holding Account,2206,Equipment Purchase,3001,CH-COLL-VEHTA3 VEHICLE INSTALLATION - TABACTIVE DEVICE IN VK70 XZZ,24/06/2022,234449,300,Revenue,Bartec Municipal Technologies Ltd,17325
32UB,Boston Borough Council,Housing Benefit Fraud,3507,Subscriptions,3600,SUB 2022/23 NATIONAL ANTI FRAUD NETWORK,01/06/2022,234596,1600,Revenue,Nafn (Tameside Mbc),14500
32UB,Boston Borough Council,Building Mtc-Public Buildings,4402,Materials,3006,07.04.2021 - REPLACE FIRE DOOR - FENSIDE,10/06/2022,234602,3162.4,Revenue,Princebuild Ltd,2152
32UB,Boston Borough Council,Building Mtc-Public Buildings,4402,Materials,3006,25.03.2021 TAPS - GMLC,10/06/2022,234604,895.76,Revenue,Princebuild Ltd,2152
32UB,Boston Borough Council,Building Mtc-Public Buildings,4402,Materials,3006,16.09.2021 GLAZING REPAIRS - FENSIDE,10/06/2022,234610,369.61,Revenue,Princebuild Ltd,2152
32UB,Boston Borough Council,Vehicle Holding Account,2206,Tyres,2208,TYRE MAINTENANCE CONTRACT APRIL 2022,24/06/2022,234612,2838.93,Revenue,B A Bush & Son Ltd,12196
32UB,Boston Borough Council,Corporate & Democratic Core,3102,Professional Services,3301,PENSION FUND VALUATION MODELLING,10/06/2022,235100,608.75,Revenue,Lincolnshire County Council Pension Fund,220
32UB,Boston Borough Council,Building Mtc-Public Buildings,4402,Materials,3006,8 INSPECTIONS - PARK AVIARIES,17/06/2022,235114,321.63,Revenue,Healthguard Ltd,3406
32UB,Boston Borough Council,Street Cleansing Service,3235,Fly Tipping Project,3325,"HIRE OF NK63 JJY W/C 04/04, 11/04, 18/04, 25/04",01/06/2022,235186,400,Revenue,Phil Haines Coaches Ltd,351
32UB,Boston Borough Council,Vehicle Holding Account,2206,Materials,3006,"HIRE OF MA14 SUY W/C 04/04, 11/04, 18/04, 25/04",01/06/2022,235187,680,Revenue,Phil Haines Coaches Ltd,351
32UB,Boston Borough Council,Grounds Maintenance,4401,Materials,3006,PALLETS (51) PH POT BEDDING COMPOST 80 LITRES,10/06/2022,235336,647.7,Revenue,Premium Horticulture Ltd,13254
32UB,Boston Borough Council,Building Mtc-Public Buildings,4402,Materials,3006,SERVICE SAUNA STEAM AT GMLP,10/06/2022,235345,711.58,Revenue,Saunatec,786
32UB,Boston Borough Council,Municipal Buildings - Ext Org,1511,Agency Staff,1032,DWP SECURITY APRIL 2022,17/06/2022,235348,6273.99,Revenue,National Westminister Bank Plc,13781
32UB,Boston Borough Council,Hackney Carriage Licences,3233,Hackney Carriges Expenses,3521,MP-2-TX  PRINTED PLATE (240MM X 176MM) -  HAC,01/06/2022,235411,453,Revenue,New Auto Ltd T/A Mogo Uk,7876
32UB,Boston Borough Council,Hackney Carriage Licences,3233,Hackney Carriges Expenses,3521,MP-2-TX PRINTED PLATE (240MM X 176MM) ? PRIVA,01/06/2022,235411,453,Revenue,New Auto Ltd T/A Mogo Uk,7876
32UB,Boston Borough Council,Hackney Carriage Licences,3233,Hackney Carriges Expenses,3521,CP-TX CLEAR PLATE (240MM X 176MM),01/06/2022,235411,588,Revenue,New Auto Ltd T/A Mogo Uk,7876
32UB,Boston Borough Council,Building Mtc-Public Buildings,4402,Materials,3006,03.09.2021 - REPLACE MIXER TAP,30/06/2022,235429,462.14,Revenue,Princebuild Ltd,2152
32UB,Boston Borough Council,Building Mtc-Public Buildings,4402,Materials,3006,09.08.2021 - GMLC REPLACE PIPEWORK,30/06/2022,235430,835.49,Revenue,Princebuild Ltd,2152
32UB,Boston Borough Council,Building Mtc-Public Buildings,4402,Materials,3006,25.08.21 - FIT LOW LEVEL W/C & CISTERN,30/06/2022,235433,347.9,Revenue,Princebuild Ltd,2152
32UB,Boston Borough Council,Leisure Pool Services,3434,Resale Gym,3035,QUOTE REF. W2022009 X 500 WRISTBANDS,01/06/2022,235441,695,Revenue,Identity Centre Ltd,13213
32UB,Boston Borough Council,Bereavement,2401,Urns And Casks,3011,"GREEN BIO BOXES WITH LINERS,    CARRIAGE FREE",01/06/2022,235447,770,Revenue,Ashdown Supplies,312
32UB,Boston Borough Council,Vehicle Holding Account,2206,Fuel Transport,2201,AD BLUE - 16.05.22,10/06/2022,235464,596.74,Revenue,Pace Fuelcare,4927
32UB,Boston Borough Council,Vehicle Holding Account,2206,Fuel Transport,2201,"2,500 LITRES ADBLUE ",10/06/2022,235464,725,Revenue,Pace Fuelcare,4927
32UB,Boston Borough Council,Vehicle Holding Account,2206,Tyres,2208,TYRE MAINTENANCE CONTRACT MAY 2022,24/06/2022,235470,2838.93,Revenue,B A Bush & Son Ltd,12196
32UB,Boston Borough Council,Leisure Pool Services,3434,Resale Pool,3034,VARIOUS ARMBANDS,10/06/2022,235479,312.4,Revenue,Splash About International,249
32UB,Boston Borough Council,Tree Management Service,3430,Specialist Services,4602,LARGE VETERAN TREE LIME NEAR CHAPEL,10/06/2022,235510,3000,Revenue,B & B Tree Specialist,10764
32UB,Boston Borough Council,Street Cleansing Service,3235,Enforcement Partners,3041,PENALTY RECEIPTS APRIL 21 - JUNE 21,01/06/2022,235558,64100,Revenue,Enfortis Limited,16672
32UB,Boston Borough Council,Credit Control Unit,1013,Transaction Costs,4701,TRANSACTION CHARGES - APRIL 22,01/06/2022,235559,1456.66,Revenue,Pay360 Ltd,17893
32UB,Boston Borough Council,Vehicle Holding Account,2206,Chris Sellars Payg,3045,KUBOTA BX2350 FLEET NO. VF10000 -,17/06/2022,235566,2589,Revenue,Chris Sellars Groundcare Ltd,6627
32UB,Boston Borough Council,Leisure Pool Services,3434,Badges / Certificates,3010,SWIMMING AWARDS,10/06/2022,235572,513.5,Revenue,Swim England Trading Ltd,950
32UB,Boston Borough Council,Leisure Pool Services,3434,Resale Pool,3034,GOGGLES/FLOATS,10/06/2022,235574,484.69,Revenue,J P Lennard Ltd,56
32UB,Boston Borough Council,Leisure Pool Services,3434,Equipment Purchase,3001,SWIM FLOATS,17/06/2022,235576,-187.62,Revenue,J P Lennard Ltd,56
32UB,Boston Borough Council,Leisure Pool Services,3434,Equipment Purchase,3001,SWIM FLOATS,17/06/2022,235576,1125.7,Revenue,J P Lennard Ltd,56
32UB,Boston Borough Council,Mayfair,3425,Event Costs,3925,GENERAC DSEL V20 TM,30/06/2022,235578,289.64,Revenue,Sunbelt Rentals Ltd,449
32UB,Boston Borough Council,Leisure Pool Services,3434,Chemicals,3009,BLEACOL,01/06/2022,235590,529.73,Revenue,Univar B.V.,12917
32UB,Boston Borough Council,Building Mtc-Public Buildings,4402,Materials,3006,SCHEDULE OF WORKS 06.05.22,30/06/2022,235592,1224,Revenue,Princebuild Ltd,2152
32UB,Boston Borough Council,Building Mtc-Public Buildings,4402,Materials,3006,SCHEDULE OF WORKS 13.05.22,30/06/2022,235593,1790,Revenue,Princebuild Ltd,2152
32UB,Boston Borough Council,Members And Mayoral,3106,Mayor And Deputy Allowance,3507,MAYOR MAKING RECORDING 2022,10/06/2022,235598,400,Revenue,Primetime Video Productions,3683
32UB,Boston Borough Council,Street Cleansing Service,3235,Specialist Services,4602,COLLECTION/REMOVAL OF ASBESTOS,17/06/2022,235599,600,Revenue,Mcp Environmental Llp,12791
32UB,Boston Borough Council,Street Cleansing Service,3235,Specialist Services,4602,COLLECTION/REMOVAL OF ASBESTOS,17/06/2022,235599,600,Revenue,Mcp Environmental Llp,12791
32UB,Boston Borough Council,Non Distributed Costs,3502,Superann Pension Incrs Act,1007,PENSION ADDED YEARS MAY 22,01/06/2022,235600,5764.89,Revenue,Lincolnshire County Council Pension Fund,220
32UB,Boston Borough Council,Leisure Pool Services,3434,Biomass Fuel,2093,WOODCHIP GMLP,17/06/2022,235601,892.8,Revenue,Sdl Biomass Ltd,15677
32UB,Boston Borough Council,Refuse Collection,3234,Provisions / Purchases,3008,FORKLIFT/DRIVER HIRE 20.04.22,10/06/2022,235603,410,Revenue,Sg Services (Boston) Ltd,8668
32UB,Boston Borough Council,Vehicle Holding Account,2206,Chris Sellars Payg,3045,RANSOME HR3300T AY10 EVT FLEET NO. VF65,01/06/2022,235608,885.05,Revenue,Chris Sellars Groundcare Ltd,6627
32UB,Boston Borough Council,Computer Costs,1503,Software Licences,3407,TF CLOUD SOFTWARE LICENCE AND SUPPORT RENEWAL,10/06/2022,235609,5946,Revenue,The Technology Forge Ltd,13752
32UB,Boston Borough Council,Mayfair,3425,Event Costs,3925,SECURITY AND STEWARDS AT BOSTON MAY FAIR 2022,17/06/2022,235615,23991.4,Revenue,Logic Service Management Ltd,12958
32UB,Boston Borough Council,Environmental Protection,3216,Air Quality / Contam Land,3913,#NAME?,17/06/2022,235625,1350,Revenue,Bureau Veritas Uk Ltd,1082
32UB,Boston Borough Council,Refuse Collection,3234,Agency Staff,1032,AGENCY W/E 22.05.22,10/06/2022,235626,4252.28,Revenue,Comensura Ltd,9671
32UB,Boston Borough Council,Grounds Maintenance,4401,Agency Staff,1032,AGENCY W/E 22.05.22,10/06/2022,235626,1199.7,Revenue,Comensura Ltd,9671
32UB,Boston Borough Council,Housing Advice & Homelessness,3241,Project Costs,3935,RESTORATIVE WORKS AT NEW ENGLAND HOTEL,10/06/2022,235680,2699,Revenue,Smart Move Design & Build Ltd,15988
32UB,Boston Borough Council,Psica,6514,Payments To Contractors,8002,14.05.22 ENTERTAINMENT,01/06/2022,235681,350,Capital,Aurora'S Carnival,17906
32UB,Boston Borough Council,Building Mtc-Public Buildings,4402,Materials,3006,25.10.21 PROBATION OFFICE CENTRAL PARK,24/06/2022,235687,428.71,Revenue,D & M Barthorpe,210
32UB,Boston Borough Council,Bereavement,2401,Plant Maintenance,2012,"ENGINEER ATTENDANCE ON SITE 24TH MAY 2022,",17/06/2022,235692,500,Revenue,Matthews Environmental Solutions Ltd,15719
32UB,Boston Borough Council,Grants General,3455,Voluntary Org Grants,3602,CORE GRANT INCOME 22/23 Q1,17/06/2022,235746,7750,Revenue,Lincolnshire Cvs,12071
32UB,Boston Borough Council,Street Cleansing Service,3235,Specialist Services,4602,COLLECTION OF SHARPS WASTE MAY 22,30/06/2022,235750,500,Revenue,Healthguard Ltd,3406
32UB,Boston Borough Council,Building Mtc-Public Buildings,4402,Materials,3006,MONTHLY VISITS MAY 22,30/06/2022,235759,573.46,Revenue,Integrated Water Services Ltd,11294
32UB,Boston Borough Council,Cctv,3206,Equipment Purchase,3001,COM0375-SERVICE-2124 WIRELESS LINK REPLACEMENT,17/06/2022,235760,2088.5,Revenue,Videcom Security Ltd,13418
32UB,Boston Borough Council,Vehicle Holding Account,2206,Sfs Payg,3043,INSPECTION/C SERVICE + MOT (TRACK ROD ENDS/WI,17/06/2022,235762,604.97,Revenue,Specialist Fleet Services Ltd,16163
32UB,Boston Borough Council,Vehicle Holding Account,2206,Sfs Payg,3043,BUMPER DAMAGED/CAB SWITCHES DAMAGED,17/06/2022,235777,349.5,Revenue,Specialist Fleet Services Ltd,16163
32UB,Boston Borough Council,Office Cleaning,3203,Agency Staff,1032,CLEANER HOURS,17/06/2022,235780,393,Revenue,Workforce (Boston) Ltd,11042
32UB,Boston Borough Council,Building Mtc-Public Buildings,4402,Materials,3006,SUPPLY AND FIT VALVES,24/06/2022,235781,688.23,Revenue,Glen Farrow Uk Ltd,12204
32UB,Boston Borough Council,Building Mtc-Public Buildings,4402,Materials,3006,RE-PRESSURISE BOILER,24/06/2022,235782,299.45,Revenue,Glen Farrow Uk Ltd,12204
32UB,Boston Borough Council,Building Mtc-Public Buildings,4402,Materials,3006,ALARM RESPONSE SERVICE 12 MTHS FROM 31.5,24/06/2022,235787,270.5,Revenue,Gb Security Group,109
32UB,Boston Borough Council,Building Mtc-Public Buildings,4402,Materials,3006,FIT NEW MCWS BOOSTER PUMP,24/06/2022,235788,1282.9,Revenue,Glen Farrow Uk Ltd,12204
32UB,Boston Borough Council,Office Cleaning,3203,Agency Staff,1032,CLEANER HOURS,17/06/2022,235789,294.75,Revenue,Workforce (Boston) Ltd,11042
32UB,Boston Borough Council,Building Mtc-Public Buildings,4402,Materials,3006,HAVEN MAINTENANCE 21.05.22-21.05.23,17/06/2022,235792,600,Revenue,Clymac Ltd,6768
32UB,Boston Borough Council,Building Mtc-Public Buildings,4402,Materials,3006,GUILDHALL MAINTENANCE 28.05.22-28.05.23,17/06/2022,235793,600,Revenue,Clymac Ltd,6768
32UB,Boston Borough Council,Bed & Breakfast,3222,Bed And Breakfast Accom Fees,3306,MAY 22 - 27 NIGHTS,10/06/2022,235794,3750,Revenue,Fairfield Guest House,1197
32UB,Boston Borough Council,Bed & Breakfast,3222,Bed And Breakfast Accom Fees,3306,31.05.22-07.06.22 ACCOMMODATION,10/06/2022,235795,700,Revenue,Smart Move (Boston) Ltd,12920
32UB,Boston Borough Council,Computer Costs,1503,Software Maintenance,3408,MCS ANNUAL RENEWAL APR 22-MAR 23,10/06/2022,235796,1114.52,Revenue,Abavus Ltd,12232
32UB,Boston Borough Council,Computer Costs,1503,Software Maintenance,3408,MCS RENEWAL APPS APR 22-MAR 23,10/06/2022,235797,7801,Revenue,Abavus Ltd,12232
32UB,Boston Borough Council,Building Mtc-Public Buildings,4402,Materials,3006,CARRY OUT WORKS - BOSTON CREM,30/06/2022,235802,748.75,Revenue,D & M Barthorpe,210
32UB,Boston Borough Council,Building Mtc-Public Buildings,4402,Materials,3006,GAS BOILERS BLOCKING - GMLP,30/06/2022,235803,398.12,Revenue,Glen Farrow Uk Ltd,12204
32UB,Boston Borough Council,Tree Management Service,3430,Materials,3006,"HIRE OF 6""DIESEL TOWABLE CHIPPER",10/06/2022,235812,280,Revenue,Sunbelt Rentals Ltd,449
32UB,Boston Borough Council,Computer Costs,1503,Software Licences,3407,RECHARGE OF SNAP SURVEY,30/06/2022,235813,657.5,Revenue,East Lindsey District Council,225
32UB,Boston Borough Council,Street Cleansing Service,3235,Fly Tipping Project,3325,"HIRE OF NK63 JJY W/C 02/05, 09/05, 16/05, 23/05. 30/05",24/06/2022,235815,500,Revenue,Phil Haines Coaches Ltd,351
32UB,Boston Borough Council,Vehicle Holding Account,2206,Materials,3006,"HIRE OF MA14 SUY W/C 02/05, 09/05, 16/05, 23/05, 30/05",24/06/2022,235816,850,Revenue,Phil Haines Coaches Ltd,351
32UB,Boston Borough Council,Town Deal,6519,Payments To Contractors,8002,FURTHER CCTV/LINE AND LEVEL DRAINAGE SUR,24/06/2022,235817,975,Capital,Tower Surveys Cctv Ltd,17922
32UB,Boston Borough Council,Corporate & Democratic Core,3102,Subscriptions,3600,MEMBERSHIP 22/23,17/06/2022,235818,1877,Revenue,District Council'S Network,11675
32UB,Boston Borough Council,Leisure Pool Services,3434,Biomass Fuel,2093,WOOD CHIP DELIVERY GMLP,17/06/2022,235819,1142.4,Revenue,Sdl Biomass Ltd,15677
32UB,Boston Borough Council,Refuse Collection,3234,Agency Staff,1032,AGENCY W/E 29.05.22,17/06/2022,235820,4945.83,Revenue,Comensura Ltd,9671
32UB,Boston Borough Council,Street Cleansing Service,3235,Agency Staff,1032,AGENCY W/E 29.05.22,17/06/2022,235820,629.48,Revenue,Comensura Ltd,9671
32UB,Boston Borough Council,Grounds Maintenance,4401,Agency Staff,1032,AGENCY W/E 29.05.22,17/06/2022,235820,482.48,Revenue,Comensura Ltd,9671
32UB,Boston Borough Council,Vehicle Holding Account,2206,Sfs Payg,3043,REPLACE FUEL TANK AND DROP BACK,24/06/2022,235825,2445.99,Revenue,Specialist Fleet Services Ltd,16163
32UB,Boston Borough Council,Bereavement,2401,Medical Assessors Fees,3302,MEDICAL DUTIES MAY 22,10/06/2022,235826,333,Revenue,Sutterton Surgery - Dr Stephen Hughes,10600
32UB,Boston Borough Council,Bereavement,2401,Medical Assessors Fees,3302,MEDICAL DUTIES MAY 22,10/06/2022,235827,1202.5,Revenue,Dr Andrew Doddrell,10098
32UB,Boston Borough Council,Marketing And Communications,1003,Language Line,3908,TELEPHONE INTERPRETING 03.05.22-31.05.22,24/06/2022,235828,1051.98,Revenue,Thebigword,7256
32UB,Boston Borough Council,Marketing And Communications,1003,Language Line,3908,TELEPHONE INTERPRETING 01.04.22-28.04.22,10/06/2022,235829,673.45,Revenue,Thebigword,7256
32UB,Boston Borough Council,Leisure Pool Services,3434,Rental Of Phone System,3418,FIBRESTREAM RENTAL,17/06/2022,235866,368,Revenue,Multidata Ltd,12625
32UB,Boston Borough Council,Street Cleansing Service,3235,Water Rates,2050,21.06.22-20.06.23 STANDPIPE HIRE CHARGES,24/06/2022,235868,950,Revenue,Aquam Water Services,14157
32UB,Boston Borough Council,Parking,3449,Professional Services,3301,MAY 22 - CASHLESS PARKING FEES,30/06/2022,235871,405,Revenue,Chipside Ltd,10954
32UB,Boston Borough Council,Leisure Pool Services,3434,Biomass Fuel,2093,GMLC WOODCHIP 01.06.22,30/06/2022,235879,940.8,Revenue,Sdl Biomass Ltd,15677
32UB,Boston Borough Council,Bereavement,2401,Plant Maintenance,2012,ENGINEER TO RETURN TO SITE AND REPLACE THE RE,24/06/2022,235880,442.8,Revenue,Leec Ltd,14707
32UB,Boston Borough Council,Vehicle Holding Account,2206,Tyres,2208,TYRE MAINTENANCE CONTRACT JUNE 2022,30/06/2022,235883,2838.93,Revenue,B A Bush & Son Ltd,12196
32UB,Boston Borough Council,Mayfair,3425,Event Costs,3925,LORRY & CRANE HIRE MAYFAIR,17/06/2022,235889,960,Revenue,Sg Services (Boston) Ltd,8668
32UB,Boston Borough Council,Development Management,3306,Agency Staff,1032,TOWN PLANNING CONSULTANCY EL - MAY 22,30/06/2022,235891,5130,Revenue,Gd Planning,16774
32UB,Boston Borough Council,Town Deal,6519,Payments To Contractors,8002,GMLC - WORK,24/06/2022,235892,8235,Capital,Delta-Simons,17924
32UB,Boston Borough Council,Computer Costs,1503,Software Services,3426,EXTERNAL INFRASTRUCTURE ASSESSMENT,24/06/2022,235894,1600,Revenue,Pentest People Ltd,17597
32UB,Boston Borough Council,Computer Costs,1503,Software Services,3426,FIREWALL REVIEW,24/06/2022,235894,1600,Revenue,Pentest People Ltd,17597
32UB,Boston Borough Council,Computer Costs,1503,Software Services,3426,INTERNAL INFRASTRUCTURE ASSESSMENT,24/06/2022,235894,4000,Revenue,Pentest People Ltd,17597
32UB,Boston Borough Council,Bereavement,2401,Memorials Purchases,3028,HOSTING OF ONLINE BOOK OF REMEMBRANCE,30/06/2022,235896,834,Revenue,Dash Informations Ltd,11646
32UB,Boston Borough Council,Leisure Pool Services,3434,Subscriptions,3600,AAA-10756 M365 E3 SHRDSVR ALNG SUBSVL MVL PER,24/06/2022,235898,377.76,Revenue,Phoenix Software Ltd,644
32UB,Boston Borough Council,Pool Cars,2209,Mot Tests,2204,SERVICE & LABOUR,24/06/2022,235901,500.6,Revenue,Boston Testing Station Ltd,10643
32UB,Boston Borough Council,Pool Cars,2209,Mot Tests,2204,SERVICE & LABOUR,24/06/2022,235904,500.6,Revenue,Boston Testing Station Ltd,10643
32UB,Boston Borough Council,Pool Cars,2209,Mot Tests,2204,CLUTCH KIT/LABOUR,24/06/2022,235906,332.65,Revenue,Boston Testing Station Ltd,10643
32UB,Boston Borough Council,Street Cleansing Service,3235,Printing And Stationery,3201,LITTER BIN STICKERS,24/06/2022,235944,295.5,Revenue,The Boston Sign Company,13085
32UB,Boston Borough Council,Personnel & Payroll,1006,Health Safety & Welfare,1110,OH FOLLOW UP,24/06/2022,235945,330,Revenue,Roodlane Medical Ltd,10787
32UB,Boston Borough Council,Grounds Maintenance,4401,Materials,3006,HANGING BASKETS X 80 REQUIRED,30/06/2022,235948,950.4,Revenue,Cheer'S Nurseries Ltd,984
32UB,Boston Borough Council,Grounds Maintenance,4401,Materials,3006,"6 PACK DAHLIA, A TOTAL OF 3000 PLANTS",30/06/2022,235949,560,Revenue,Cheer'S Nurseries Ltd,984
32UB,Boston Borough Council,Grounds Maintenance,4401,Materials,3006,"TUBS ? 22 X 16-INCH ROUND, 15 X 20-INCH ROUND",30/06/2022,235950,645.29,Revenue,Cheer'S Nurseries Ltd,984
32UB,Boston Borough Council,Vehicle Holding Account,2206,Equipment Purchase,3001,CH-COLL-COM150 COLLECTIVE IC150 UNITS WITH SIM,24/06/2022,235952,2500,Revenue,Bartec Municipal Technologies Ltd,17325
32UB,Boston Borough Council,Refuse Collection,3234,Agency Staff,1032,AGENCY W/E 05.06.22,24/06/2022,235955,5803,Revenue,Comensura Ltd,9671
32UB,Boston Borough Council,Street Cleansing Service,3235,Agency Staff,1032,AGENCY W/E 05.06.22,24/06/2022,235955,646.92,Revenue,Comensura Ltd,9671
32UB,Boston Borough Council,Grounds Maintenance,4401,Agency Staff,1032,AGENCY W/E 05.06.22,24/06/2022,235955,280.36,Revenue,Comensura Ltd,9671
32UB,Boston Borough Council,Dog Collection,3219,Professional Services,3301,STRAY DOG COLLECTION SERVICE WITH REPORT,30/06/2022,235959,1120.83,Revenue,Pestinator Uk Ltd,13043
32UB,Boston Borough Council,Grants General,3455,Voluntary Org Grants,3602,SERVICE LEVEL AGREEMENT 2022/2023,30/06/2022,235961,16250,Revenue,Citizens Advice Mid Lincolnshire,540
32UB,Boston Borough Council,Leisure Pool Services,3434,Plant Maintenance,2012,WORK CARRIED OUT AT GMLP,24/06/2022,235962,579.5,Revenue,Nerg,13707
32UB,Boston Borough Council,Vehicle Holding Account,2206,Chris Sellars Payg,3045,KUBOTA BX2350D FLEET NO. VF10000 ,30/06/2022,235963,264.37,Revenue,Chris Sellars Groundcare Ltd,6627
32UB,Boston Borough Council,Vehicle Holding Account,2206,Sfs Fixed Maintenance,3042,LT21 NDN CONTRACT MAINTENANCE JUNE,30/06/2022,235964,1550.8,Revenue,Specialist Fleet Services Ltd,16163
32UB,Boston Borough Council,Vehicle Holding Account,2206,Sfs Fixed Maintenance,3042,GK20 UYN CONTRACT MAINTENANCE JUNE,30/06/2022,235964,1664.12,Revenue,Specialist Fleet Services Ltd,16163
32UB,Boston Borough Council,Vehicle Holding Account,2206,Sfs Fixed Maintenance,3042,LS20 XDB CONTRACT MAINTENANCE JUNE,30/06/2022,235964,1671.08,Revenue,Specialist Fleet Services Ltd,16163
32UB,Boston Borough Council,Vehicle Holding Account,2206,Sfs Fixed Maintenance,3042,VK70 XZT CONTRACT MAINTENANCE JUNE,30/06/2022,235964,1885.87,Revenue,Specialist Fleet Services Ltd,16163
32UB,Boston Borough Council,Vehicle Holding Account,2206,Sfs Fixed Maintenance,3042,VK70 XZU CONTRACT MAINTENANCE JUNE,30/06/2022,235964,1885.87,Revenue,Specialist Fleet Services Ltd,16163
32UB,Boston Borough Council,Vehicle Holding Account,2206,Sfs Fixed Maintenance,3042,VK70 XZV CONTRACT MAINTENANCE JUNE,30/06/2022,235964,1885.87,Revenue,Specialist Fleet Services Ltd,16163
32UB,Boston Borough Council,Vehicle Holding Account,2206,Sfs Fixed Maintenance,3042,VK70 XZX CONTRACT MAINTENANCE JUNE,30/06/2022,235964,1885.87,Revenue,Specialist Fleet Services Ltd,16163
32UB,Boston Borough Council,Vehicle Holding Account,2206,Sfs Fixed Maintenance,3042,VK70 XZY CONTRACT MAINTENANCE JUNE,30/06/2022,235964,1885.87,Revenue,Specialist Fleet Services Ltd,16163
32UB,Boston Borough Council,Vehicle Holding Account,2206,Sfs Fixed Maintenance,3042,VK70 XZZ CONTRACT MAINTENANCE JUNE,30/06/2022,235964,1885.87,Revenue,Specialist Fleet Services Ltd,16163
32UB,Boston Borough Council,Vehicle Holding Account,2206,Sfs Fixed Maintenance,3042,VK71 GKU CONTRACT MAINTENANCE JUNE,30/06/2022,235964,1885.87,Revenue,Specialist Fleet Services Ltd,16163
32UB,Boston Borough Council,Vehicle Holding Account,2206,Sfs Fixed Maintenance,3042,VX18 KFG CONTRACT MAINTENANCE JUNE,30/06/2022,235964,1885.87,Revenue,Specialist Fleet Services Ltd,16163
32UB,Boston Borough Council,Vehicle Holding Account,2206,Sfs Fixed Maintenance,3042,VK70 XZW CONTRACT MAINTENANCE JUNE,30/06/2022,235964,1885.87,Revenue,Specialist Fleet Services Ltd,16163
32UB,Boston Borough Council,Vehicle Holding Account,2206,Sfs Fixed Maintenance,3042,H4 BBC CONTRACT MAINTENANCE JUNE,30/06/2022,235964,1972.9,Revenue,Specialist Fleet Services Ltd,16163
32UB,Boston Borough Council,Housing Advice & Homelessness,3241,Project Costs,3935,REPAYMENT FOR WINTER 2021/22 SERVICES,24/06/2022,235966,1062.6,Revenue,Churches Together In Boston,12351
32UB,Boston Borough Council,Land Charges,3232,Lcc Search Fees,3984,LOCAL LAND SEARCH FEES APRIL 22,24/06/2022,235967,982.5,Revenue,Lincolnshire County Council,12322
32UB,Boston Borough Council,Civic Functions,3101,Civic Hospitality,3503,ROOM HIRE 21/3/22 CATERING & DRINKS,24/06/2022,235969,1300,Revenue,Boston United Fc Ltd,6432
32UB,Boston Borough Council,Democratic Services,2101,Hire Of Halls,3931,ROOM HIRE 21/3/22 CATERING & DRINKS,24/06/2022,235970,285,Revenue,Boston United Fc Ltd,6432
32UB,Boston Borough Council,Democratic Services,2101,Hire Of Halls,3931,NINETEEN33 21/2/22 CATERING DRINKS ELEC,24/06/2022,235975,432.5,Revenue,Boston United Fc Ltd,6432
32UB,Boston Borough Council,Planning Policy,3304,Shared Services,3323,SHARED COSTS OF JOINT PLANNING,24/06/2022,235984,31373.74,Revenue,South Holland District Council,964
32UB,Boston Borough Council,Central Training & Recruitment,2001,Training Courses,1108,1 DAY AQUA INSTRUCTOR COURSE,30/06/2022,235986,350,Revenue,Water Fitness Ltd,5770
32UB,Boston Borough Council,Building Mtc-Public Buildings,4402,Materials,3006,LIFT MOTOR ROOM SOCKET,30/06/2022,235989,458.86,Revenue,D & M Barthorpe,210
32UB,Boston Borough Council,Leisure Pool Services,3434,Professional Services,3301,MAY 2022 CLASSES,24/06/2022,235993,280,Revenue,Top Banana Fitness,16459
32UB,Boston Borough Council,Blg Control (Non Fee Earning),3202,Professional Services,3301,CONTRACTOR'S FEE FOR MAKING SAFE DANGEROUS WALL ADJACENT TO THE FOOTPATH,24/06/2022,235994,440,Revenue,Steve Good Builder & Bricklaying,7622
32UB,Boston Borough Council,Land Charges,3232,Lcc Search Fees,3984,LOCAL LAND SEARCH MAY 2022,24/06/2022,235998,1992.5,Revenue,Lincolnshire County Council,12322
32UB,Boston Borough Council,Community Champions: La Fund,1019,Training Courses,1108,MENTAL HEALTH FIRST AID COURSE,30/06/2022,236003,2430,Revenue,Orchid Health And Wellbeing Consultancy,16489
32UB,Boston Borough Council,Refuse Collection,3234,Agency Staff,1032,TEMP. STAFF W/E 12.06.22,24/06/2022,236008,4441.06,Revenue,Comensura Ltd,9671
32UB,Boston Borough Council,Street Cleansing Service,3235,Agency Staff,1032,TEMP. STAFF W/E 12.06.22,24/06/2022,236008,520.48,Revenue,Comensura Ltd,9671
32UB,Boston Borough Council,Leisure Pool Services,3434,Chemicals,3009,BLEACOL,24/06/2022,236012,392.19,Revenue,Univar B.V.,12917
32UB,Boston Borough Council,Leisure Pool Services,3434,Chemicals,3009,CALC HYPO HTH GRAN 25K CNN,24/06/2022,236013,737.7,Revenue,Univar B.V.,12917
32UB,Boston Borough Council,Office Cleaning,3203,Agency Staff,1032,CLEANER,30/06/2022,236014,393,Revenue,Workforce (Boston) Ltd,11042
32UB,Boston Borough Council,Building Mtc-Public Buildings,4402,Materials,3006,MONTHLY VISIT JUNE 2022,30/06/2022,236015,573.46,Revenue,Integrated Water Services Ltd,11294
32UB,Boston Borough Council,Health Activity,3415,Project Costs,3935,1940S EVENT CENTRAL PARK BOSTON 12/6/22,30/06/2022,236018,680,Revenue,Franks Marquees,13159
32UB,Boston Borough Council,Refuse Collection,3234,Agency Staff,1032,TEMP. STAFF W/E 19/6/22,30/06/2022,236019,5518.91,Revenue,Comensura Ltd,9671
32UB,Boston Borough Council,Street Cleansing Service,3235,Agency Staff,1032,TEMP. STAFF W/E 19/6/22,30/06/2022,236019,651.28,Revenue,Comensura Ltd,9671
32UB,Boston Borough Council,Grounds Maintenance,4401,Agency Staff,1032,TEMP. STAFF W/E 19/6/22,30/06/2022,236019,391.2,Revenue,Comensura Ltd,9671
32UB,Boston Borough Council,Leisure Pool Services,3434,Resale Gym,3035,TROLLEY COIN KEYRING,24/06/2022,236022,320,Revenue,Rt Promotions,12807
32UB,Boston Borough Council,Office Cleaning,3203,Agency Staff,1032,CLEANER HOURS,30/06/2022,236023,393,Revenue,Workforce (Boston) Ltd,11042
32UB,Boston Borough Council,Building Mtc-Public Buildings,4402,Materials,3006,BRACKET&LIGHT REPLACE ST JOHNS RD DEPOT,30/06/2022,236024,4488,Revenue,Eon Uk Energy Services,8014
32UB,Boston Borough Council,Building Mtc-Public Buildings,4402,Materials,3006,MULTISITE LANTERN REPAIRS 27/4/22,30/06/2022,236025,2074,Revenue,Eon Uk Energy Services,8014
32UB,Boston Borough Council,Building Mtc-Public Buildings,4402,Materials,3006,STREET LIGHT MAINTENANCE Q/E 30/6/22,30/06/2022,236026,4214,Revenue,Eon Uk Energy Services,8014
32UB,Boston Borough Council,Towns Fund Leisure,6222,Payments To Contractors,8002,PROJECT WORKS GMLC,30/06/2022,236041,3730,Capital,Delta-Simons,17924
32UB,Boston Borough Council,Corporate & Democratic Core,3102,Professional Services,3301,MCCLOUD SERVICE ADJUST.,30/06/2022,236049,1670,Revenue,Lincolnshire County Council Pension Fund,220
32UB,Boston Borough Council,Finance,1502,Professional Services,3301,CONTRACT PRICE JUNE 2022,30/06/2022,236101,213486.59,Revenue,Public Sector Partnership Services Ltd,16086
32UB,Boston Borough Council,Health Activity,3415,Project Costs,3935,TO HIRE 6 PORTALOOS FOR 1940'S EVENT,30/06/2022,236104,460,Revenue,Blockfree Services Ltd - Lincs Loos,14119
32UB,Boston Borough Council,Princess Royal Sports Arena,3452,Gas,2022,BULK PROPANE PRINCESS ROYAL SPORTS ARENA,30/06/2022,236106,10392.29,Revenue,Calor Gas Ltd,13658
32UB,Boston Borough Council,Nndr Collection And Admin,2509,Professional Services,3301,MILL PETS SUPPLIES RV FINDER,30/06/2022,236111,375,Revenue,Inform Cpi Ltd,11570
32UB,Boston Borough Council,Nndr Collection And Admin,2509,Professional Services,3301,TRANSFLOR LTD RV FINDER,30/06/2022,236112,350,Revenue,Inform Cpi Ltd,11570
32UB,Boston Borough Council,Bed & Breakfast,3222,Bed And Breakfast Accom Fees,3306,ACCOMMODATION 06.06.22-12.06.22,30/06/2022,236113,560,Revenue,Smart Move (Boston) Ltd,12920
32UB,Boston Borough Council,Bed & Breakfast,3222,Bed And Breakfast Accom Fees,3306,ACCOMMODATION 13.06.22-19.06.22,30/06/2022,236114,560,Revenue,Smart Move (Boston) Ltd,12920
32UB,Boston Borough Council,Bed & Breakfast,3222,Bed And Breakfast Accom Fees,3306,ACCOMMODATION 19 NIGHTS,30/06/2022,236115,1235,Revenue,Fairfield Guest House,1197
32UB,Boston Borough Council,Bed & Breakfast,3222,Bed And Breakfast Accom Fees,3306,02.05.22-13.06.22 ACCOMMODATION,30/06/2022,236116,6475,Revenue,The Lord Grey Hotel,14612
32UB,Boston Borough Council,Housing Advice & Homelessness,3241,Project Costs,3935,02.05.22-13.06.22 ACCOMMODATION,30/06/2022,236116,6475,Revenue,The Lord Grey Hotel,14612
32UB,Boston Borough Council,Bereavement,2401,Materials,3006,ATTENDANCE OF SOUND ENGINEER TO INVESTIGATE ,30/06/2022,236118,363,Revenue,The Yaboo Co Ltd (Wesley Media),6678
32UB,Boston Borough Council,Recycling,3238,Plant Maintenance,2012,FORKLIFT/DRIVER HIRE 10.05.22,30/06/2022,236119,410,Revenue,Sg Services (Boston) Ltd,8668
32UB,Boston Borough Council,Street Cleansing Service,3235,Enforcement Partners,3041,FPN CHARGES APRIL,30/06/2022,236124,5510,Revenue,La Support Ltd,14578
32UB,Boston Borough Council,Street Cleansing Service,3235,Enforcement Partners,3041,FPN CHARGES MARCH 22,30/06/2022,236125,5709.5,Revenue,La Support Ltd,14578
32UB,Boston Borough Council,Bereavement,2401,Plant Maintenance,2012,"ENGINEER ATTENDANCE ON SITE 25TH MAY 2022,",30/06/2022,236137,4792,Revenue,Matthews Environmental Solutions Ltd,15719
32UB,Boston Borough Council,Bed & Breakfast,3222,Bed And Breakfast Accom Fees,3306,ACCOMMODATION 14.06.22-21.06.22,30/06/2022,236138,700,Revenue,Smart Move (Boston) Ltd,12920
32UB,Boston Borough Council,Bed & Breakfast,3222,Bed And Breakfast Accom Fees,3306,ACCOMMODATION 20.06.22-27.06.22,30/06/2022,236139,560,Revenue,Smart Move (Boston) Ltd,12920
32UB,Boston Borough Council,Bed & Breakfast,3222,Bed And Breakfast Accom Fees,3306,ACCOMMODATION 9 NIGHTS,30/06/2022,236140,540,Revenue,Fairfield Guest House,1197
32UB,Boston Borough Council,Bed & Breakfast,3222,Bed And Breakfast Accom Fees,3306,ACCOMMODATION 16 NIGHTS,30/06/2022,236141,2400,Revenue,Fairfield Guest House,1197
32UB,Boston Borough Council,Selcp,1017,Professional Services,3301,SELCP INSTALMENT 02,30/06/2022,236143,3402.9,Revenue,Electric Egg Ltd,14380
32UB,Boston Borough Council,Credit Control Unit,1013,Recovery Costs,4617,NAFN RECHARGES JAN-MARCH 2022,30/06/2022,236145,391.39,Revenue,Nafn (Tameside Mbc),14500
32UB,Boston Borough Council,Computer Costs,1503,Contract Change Notice (Psps),3327,OUT OF HOURS SUPPORT 22-23,30/06/2022,236148,11056,Revenue,Public Sector Partnership Services Ltd,16086
32UB,Boston Borough Council,Computer Costs,1503,Software Licences,3407,MIMECAST LICENSE 22-23,30/06/2022,236149,619.35,Revenue,Public Sector Partnership Services Ltd,16086
32UB,Boston Borough Council,Computer Costs,1503,Software Licences,3407,GOSS SUPPORT 22-23,30/06/2022,236150,21563.67,Revenue,Public Sector Partnership Services Ltd,16086
32UB,Boston Borough Council,Computer Costs,1503,Software Licences,3407,ALIENVAULT LICENSING 22-23,30/06/2022,236151,13267.34,Revenue,Public Sector Partnership Services Ltd,16086
32UB,Boston Borough Council,Computer Costs,1503,Disaster Recovery,3429,DR HOSTING,30/06/2022,236152,1626.06,Revenue,East Lindsey District Council,225
32UB,Boston Borough Council,Vehicle Holding Account,2206,Sfs Payg,3043,REPLACE E-STOP/LOWER PANEL AND DECAL VK70 XZT,30/06/2022,236161,715.96,Revenue,Specialist Fleet Services Ltd,16163
32UB,Boston Borough Council,Vehicle Holding Account,2206,Sfs Payg,3043,D/S REV LIGHT BRACKET SNAPPED,30/06/2022,236162,256.95,Revenue,Specialist Fleet Services Ltd,16163
32UB,Boston Borough Council,Vehicle Holding Account,2206,Sfs Payg,3043,DRIVERS SEAT BELT SHUT IN DOOR,30/06/2022,236164,319.82,Revenue,Specialist Fleet Services Ltd,16163
32UB,Boston Borough Council,Vehicle Holding Account,2206,Sfs Payg,3043,REPLACE AIR BAG AND DAMAGED BAG PEDESTAL,30/06/2022,236165,1327.96,Revenue,Specialist Fleet Services Ltd,16163
32UB,Boston Borough Council,Vehicle Holding Account,2206,Sfs Payg,3043,MOT+SERVICE/REAR LIGHT COVER/BALL JOINT,30/06/2022,236171,764.8,Revenue,Specialist Fleet Services Ltd,16163
32UB,Boston Borough Council,Town Deal - Capacity Fund,3426,Professional Services,3301,PROF. FEES R.E. GRANT FUNDING AGREEMENT,30/06/2022,236174,637,Revenue,Freeths Llp,5650
32UB,Boston Borough Council,Street Cleansing Service,3235,Fly Tipping Project,3325,"FRONT BUMPER LAMP, PAINT, WING",30/06/2022,236176,1300,Revenue,Phil Haines Coaches Ltd,351
32UB,Boston Borough Council,Street Cleansing Service,3235,Fly Tipping Project,3325,"FRONT WING & BUMPER REPAIR - PAINT, LAMP",30/06/2022,236178,1300,Revenue,Phil Haines Coaches Ltd,351
32UB,Boston Borough Council,Depot,2405,Equipment Purchase,3001,ST JOHNS RD MARCH22 32FT PORTABLE OFFICE,30/06/2022,236179,281.67,Revenue,Portable Offices (Hire) Ltd,16339
32UB,Boston Borough Council,Depot,2405,Equipment Purchase,3001,32FT PORTABLE OFFICE ST JOHNS RD APRIL22,30/06/2022,236180,281.67,Revenue,Portable Offices (Hire) Ltd,16339
32UB,Boston Borough Council,Depot,2405,Equipment Purchase,3001,32FT PORTABLE OFFICE ST JOHNS RD JUNE22,30/06/2022,236181,281.67,Revenue,Portable Offices (Hire) Ltd,16339
32UB,Boston Borough Council,Bereavement,2401,Plant Maintenance,2012,CALIBRATE ANALYSER & REPL OXY TUBE,30/06/2022,236183,1515.08,Revenue,Matthews Environmental Solutions Ltd,15719
32UB,Boston Borough Council,Vehicle Holding Account,2206,Materials,3006,FUSO CANTER 7C15 FARD MICRO 9-13 MAY22,30/06/2022,236202,1000,Revenue,Euro Municipal Ltd,13250
32UB,Boston Borough Council,Vehicle Holding Account,2206,Materials,3006,DENNIS ELITE6 TERBERG OMNIDEL 1-12 MAY22,30/06/2022,236203,1770,Revenue,Euro Municipal Ltd,13250
32UB,Boston Borough Council,Refuse Collection,3234,Agency Staff,1032,TEMP. STAFF W/E 26/6/22,30/06/2022,236208,4738.77,Revenue,Comensura Ltd,9671
32UB,Boston Borough Council,Grounds Maintenance,4401,Agency Staff,1032,TEMP. STAFF W/E 26/6/22,30/06/2022,236208,642.56,Revenue,Comensura Ltd,9671
32UB,Boston Borough Council,Princess Royal Sports Arena,3452,Plant Maintenance,2012,PRINCESS ROYAL SPORTS ARENA AUGER MOTOR,30/06/2022,236210,2355.48,Revenue,Nerg,13707
32UB,Boston Borough Council,Leisure Pool Services,3434,Plant Maintenance,2012,GMLC LHS HEAT EXCHANGER ASH AUGER,30/06/2022,236211,2959.79,Revenue,Nerg,13707
32UB,Boston Borough Council,Levelling-Up Fund,1020,Professional Services,3301,MAY - UKSPF PROJECT,30/06/2022,236212,6865.15,Revenue,Athene Communications Limited,17939
32UB,Boston Borough Council,Parking,3449,Cash Collection & Counting,4621,TINS & CASH PROCESSING,30/06/2022,236225,1195.15,Revenue,Kings Armoured Security Services Ltd,10472
32UB,Boston Borough Council,Parking,3449,Fees And Charges,315,CAR PARKING,30/06/2022,236226,2854.3,Revenue,Savoy Cinemas  Ltd,1373
32UB,Boston Borough Council,Parking,3449,Fees And Charges,315,CAR PARK VOUCHERS,30/06/2022,236227,2069,Revenue,Savoy Cinemas  Ltd,1373
32UB,Boston Borough Council,Bed & Breakfast,3222,Bed And Breakfast Accom Fees,3306,ACCOMMODATION,30/06/2022,236231,640,Revenue,Smart Move (Boston) Ltd,12920
32UB,Boston Borough Council,Municipal Buildings - Ext Org,1511,Agency Staff,1032,DWP SECURITY MAY 22,30/06/2022,236233,6934.41,Revenue,National Westminister Bank Plc,13781
32UB,Boston Borough Council,Leisure Pool Services,3434,Equipment Purchase,3001,7ZU78A#B19 HP COLOR LASERJET ENTERPRISE M555D,30/06/2022,236242,473.58,Revenue,Ccs Media Ltd,17249
32UB,Boston Borough Council,Community Champions: La Fund,1019,Project Costs,3935,EHC SMALL GRANTS SCHEME 22.23 COMMUNITY,30/06/2022,236243,1000,Revenue,Centenary Methodist Church,553
32UB,Boston Borough Council,Land Charges,3232,Hmlr Migration,3046,HMLR DATA EXTRACTION,30/06/2022,236244,399.5,Revenue,Public Sector Partnership Services Ltd,16086
32UB,Boston Borough Council,Building Mtc-Public Buildings,4402,Materials,3006,CALL-OUT GMLP CHLORINE PUMP 13/5/22,30/06/2022,236319,348.64,Revenue,Topline Electonics Ltd,2649
32UB,Boston Borough Council,Bus And Coach Station,3445,Business Rates,2040,2022-23 BUS STATION AND PREMISES,30/06/2022,236320,2145.7,Revenue,Boston Borough Council,1433
32UB,Boston Borough Council,Depot,2405,Business Rates,2040,2022-23 16 MAYFLOWER UNITS,30/06/2022,236321,2070.85,Revenue,Boston Borough Council,1433
32UB,Boston Borough Council,Parking,3449,Business Rates,2040,2022-23 ARTILLERY ROW CP,30/06/2022,236322,2694.6,Revenue,Boston Borough Council,1433
32UB,Boston Borough Council,Parking,3449,Business Rates,2040,2022-23 BLUE STREET CP,30/06/2022,236323,1347.3,Revenue,Boston Borough Council,1433
32UB,Boston Borough Council,Parking,3449,Business Rates,2040,2022-23 BOTOLPH STREET CP,30/06/2022,236324,4241.5,Revenue,Boston Borough Council,1433
32UB,Boston Borough Council,Parking,3449,Business Rates,2040,2022-23 BARGATE LODGE CP,30/06/2022,236325,5489,Revenue,Boston Borough Council,1433
32UB,Boston Borough Council,Parking,3449,Business Rates,2040,2022-23 FYDELL CRESCENT CP,30/06/2022,236326,3243.5,Revenue,Boston Borough Council,1433
32UB,Boston Borough Council,Parking,3449,Business Rates,2040,2022-23 FYDELL CRESCENT CP,30/06/2022,236327,9231.5,Revenue,Boston Borough Council,1433
32UB,Boston Borough Council,Parking,3449,Business Rates,2040,2022-23 GEORGE STREET CP,30/06/2022,236328,3343.3,Revenue,Boston Borough Council,1433
32UB,Boston Borough Council,Parking,3449,Business Rates,2040,2022-23 DOUGHTY QUAY CP,30/06/2022,236329,4990,Revenue,Boston Borough Council,1433
32UB,Boston Borough Council,Parking,3449,Business Rates,2040,2022-23 IRBY STREET CP,30/06/2022,236330,611.28,Revenue,Boston Borough Council,1433
32UB,Boston Borough Council,Bus And Coach Station,3445,Business Rates,2040,2022-23 BUS STATION AND PREMISES,30/06/2022,236341,5988,Revenue,Boston Borough Council,1433
32UB,Boston Borough Council,Parking,3449,Business Rates,2040,2022-23 BUOY YARD CP,30/06/2022,236353,4091.8,Revenue,Boston Borough Council,1433
32UB,Boston Borough Council,Parking,3449,Business Rates,2040,2022-23 SOUTH QUAY SOUTH END CP,30/06/2022,236354,2994,Revenue,Boston Borough Council,1433
32UB,Boston Borough Council,Parking,3449,Business Rates,2040,2022-23 CUSTOM HOUSE QUAY CP,30/06/2022,236355,4890.2,Revenue,Boston Borough Council,1433
32UB,Boston Borough Council,Parking,3449,Business Rates,2040,2022-23 SPAYNE ROAD CP,30/06/2022,236356,2495,Revenue,Boston Borough Council,1433
32UB,Boston Borough Council,Parking,3449,Business Rates,2040,2022-23 WIDE BARGATE CP,30/06/2022,236357,24950,Revenue,Boston Borough Council,1433
32UB,Boston Borough Council,Municipal Buildings,2404,Business Rates,2040,2022-23 MUNICIPAL BUILDINGS,30/06/2022,236358,44800,Revenue,Boston Borough Council,1433
32UB,Boston Borough Council,Depot,2405,Business Rates,2040,2022-23 ST JOHNS DEPOT,30/06/2022,236359,11102.75,Revenue,Boston Borough Council,1433
32UB,Boston Borough Council,"Arts, Heritage & Tourism",3407,Business Rates,2040,2022-23 GUILDHALL,30/06/2022,236360,4865.25,Revenue,Boston Borough Council,1433
32UB,Boston Borough Council,Parking,3449,Business Rates,2040,2022-23 WEST END CAR PARK,30/06/2022,236363,11227.5,Revenue,Boston Borough Council,1433
32UB,Boston Borough Council,Bereavement,2401,Business Rates,2040,2022-23 CREMATORIUM,30/06/2022,236364,23652.6,Revenue,Boston Borough Council,1433
32UB,Boston Borough Council,Leisure Pool Services,3434,Business Rates,2040,2022-23 GMLC,30/06/2022,236366,95744,Revenue,Boston Borough Council,1433
32UB,Boston Borough Council,Princess Royal Sports Arena,3452,Business Rates,2040,2022-23 PRSA,30/06/2022,236367,2594.8,Revenue,Boston Borough Council,1433
32UB,Boston Borough Council,Parking,3449,Business Rates,2040,2022-23 SOUTH SQUARE CP,30/06/2022,236368,4840.3,Revenue,Boston Borough Council,1433
32UB,Boston Borough Council,Parking,3449,Business Rates,2040,2022-23 ST GEORGES RD CP,30/06/2022,236370,28416,Revenue,Boston Borough Council,1433
32UB,Boston Borough Council,Markets,3424,Business Rates,2040,2022-23 MARKET PLACE CP,30/06/2022,236371,28160,Revenue,Boston Borough Council,1433
32UB,Boston Borough Council,Parking,3449,Business Rates,2040,2022-23 SPAIN PLACE CP,30/06/2022,236374,1921.15,Revenue,Boston Borough Council,1433
32UB,Boston Borough Council,Markets,3424,Business Rates,2040,2022-23 ADJ 47 WIDE BARGATE,30/06/2022,236375,1921.15,Revenue,Boston Borough Council,1433
32UB,Boston Borough Council,Parking,3449,Business Rates,2040,2022-23 TUNNARD STREET CP,30/06/2022,236376,13223.5,Revenue,Boston Borough Council,1433
32UB,Boston Borough Council,Housing Benefits,2507,External Audit Fees,3504,HOUSING BENEFITS ASSURANCE  PROCESS,30/06/2022,236377,11165,Revenue,Mazars Llp,13918
32UB,Boston Borough Council,Legal Services,1402,Subscriptions,3600,LEXIS NEXIS DD - REFERENCE DI055369M,01/06/2022,74594,795.83,Revenue,Lexis Nexis Butterworths Tolley,
32UB,Boston Borough Council,Leisure Pool Services,3434,Equipment Purchase,3001,PULSE FITNESS DD - MAINTENANCE AGREEMENT FEE MAY 2022,01/06/2022,74596,545.38,Revenue,Pulse Fitness,
32UB,Boston Borough Council,Drainage Board Precepts,9000,Precepts,6500,WITHAM FOURTH IDB,01/06/2022,74641,581709.98,Precept,Witham Fourth IDB,
32UB,Boston Borough Council,Loan Interest,9010,Interest Payments,6301,PWLB INTEREST 6 MONTHS,10/06/2022,74720,127000,Revenue,Public Works Loan Board,
32UB,Boston Borough Council,Loan Interest,9010,Interest Payments,6301,PWLB INTEREST PAYMENT 6 MONTHS,13/06/2022,74729,48400,Revenue,Public Works Loan Board,
32UB,Boston Borough Council,Vehicle Holding Account,2206,Fuel Transport,2201,FUEL CARD SERVICE 12/06/2021 VU62 HVH,15/06/2022,74808,507.87,Revenue,Fuelcard Services,
32UB,Boston Borough Council,Vehicle Holding Account,2206,Fuel Transport,2201,FUEL CARD SERVICE 12/06/2021,15/06/2022,74808,5331.28,Revenue,Fuelcard Services,
32UB,Boston Borough Council,Leisure Pool Services,3434,Provisions / Purchases,3008,BOOKER DD RE GMLC,15/06/2022,74812,902.84,Revenue,Booker,
32UB,Boston Borough Council,Vehicle Holding Account,2206,Fuel Transport,2201,FUEL CARD SERVICES 12/06/22,15/06/2022,74814,863.73,Revenue,Fuelcard Services,
32UB,Boston Borough Council,Nndr,9006,Business Rates Retention,4006,LINCS CC DD RE B RATES TARIFFS 2022.23,20/06/2022,74847,462664,Precept,Lincolnshire County Council,
32UB,Boston Borough Council,Nndr Control Account,5103,Central Government Share,7264,BRR CENTRAL SHARE 2022.23,20/06/2022,74849,835484,Precept,DCLG,
32UB,Boston Borough Council,Corporate & Democratic Core,3102,Bank Charges,3510,BOTTOMLINE MONTHLY AGREEMENT RE BACS,20/06/2022,74863,700.52,Revenue,Bottomline Technologies,
32UB,Boston Borough Council,"Arts, Heritage & Tourism",3407,Water Rates,2050,GUILDHALL - 04.03.22-03.06.22,21/06/2022,74874,1101.61,Revenue,Anglian Water,
32UB,Boston Borough Council,Bereavement,2401,Gas,2022,CREM - GAS - 31.03.22-30.04.22,17/06/2022,74878,2161.43,Revenue,ESPO,
32UB,Boston Borough Council,Municipal Buildings,2404,Gas,2022,MUNICIPAL BUILDINGS - GAS - 31.03.22-30.04.22,17/06/2022,74878,1019.8,Revenue,ESPO,
32UB,Boston Borough Council,"Arts, Heritage & Tourism",3407,Gas,2022,GUILDHALL - GAS - 31.03.22-30.04.22,17/06/2022,74878,721.22,Revenue,ESPO,
32UB,Boston Borough Council,Leisure Pool Services,3434,Gas,2022,GMLC - GAS - 31.03.22-30.04.22,17/06/2022,74878,7628.99,Revenue,ESPO,
32UB,Boston Borough Council,Vehicle Holding Account,2206,Fuel Transport,2201,FUEL CARD SERVICES 19/06/2022 VU62 HVH,23/06/2022,74911,522.68,Revenue,Fuelcard Services,
32UB,Boston Borough Council,Vehicle Holding Account,2206,Fuel Transport,2201,FUEL CARD SERVICES 19/06/2022,23/06/2022,74911,6139.17,Revenue,Fuelcard Services,
32UB,Boston Borough Council,Vehicle Holding Account,2206,Fuel Transport,2201,FUEL CARD SERVICES 19/06/2022,23/06/2022,74912,432.87,Revenue,Fuelcard Services,
32UB,Boston Borough Council,Town Deal,6519,Payments To Contractors,8002,PP PARISH OF BOSTON INVOICE TOWN DEAL CLAIM JUNE 2022,24/06/2022,74936,87062.15,Capital,Parish of Boston,
32UB,Boston Borough Council,Corporate & Democratic Core,3102,Bank Charges,3510,ACADEMY MANAGED SERVICES - CAPITA DD,27/06/2022,74937,5942.84,Revenue,Capita software services,
32UB,Boston Borough Council,Housing Benefits,2507,Rental Of Phone System,3418,FOEHN DD'S,28/06/2022,74939,2555.87,Revenue,Foehn,
32UB,Boston Borough Council,Bereavement,2401,Electricity,2021,"ROBIN HOODS WALK, CREM - 01.05.22-31.05.22",28/06/2022,74946,500.31,Revenue,Total Gas & Power,
32UB,Boston Borough Council,Municipal Buildings,2404,Electricity,2021,MB ACC 3004800128 - 01.05.22-31.05.22,28/06/2022,74946,921.05,Revenue,Total Gas & Power,
32UB,Boston Borough Council,Municipal Buildings,2404,Electricity,2021,MB ACC 3005069232 - 01.05.22- 31.05.22,28/06/2022,74946,2933.35,Revenue,Total Gas & Power,
32UB,Boston Borough Council,Depot,2405,Electricity,2021,ST JOHNS RD - 01.05.22-31.05.22,28/06/2022,74946,275.48,Revenue,Total Gas & Power,
32UB,Boston Borough Council,Redstone Caravan Site,3225,Electricity,2021,REDSTONE IND ESTATE - 01.05.22-31.05.22,28/06/2022,74946,3050.07,Revenue,Total Gas & Power,
32UB,Boston Borough Council,Leisure Pool Services,3434,Electricity,2021,GMLC - 01.05.22-31.05.22,28/06/2022,74946,4865.99,Revenue,Total Gas & Power,
32UB,Boston Borough Council,Footway Lighting & Mtc,3447,Electricity,2021,FOOTWAY LIGHTING - 01.05.22-31.05.22,28/06/2022,74946,2949.74,Revenue,Total Gas & Power,
32UB,Boston Borough Council,Parking,3449,Electricity,2021,CAR PARK LIGHTING TICKET MACHINES - 01.05.22-31.05.22,28/06/2022,74946,659.21,Revenue,Total Gas & Power,
32UB,Boston Borough Council,Princess Royal Sports Arena,3452,Electricity,2021,PRSA - 01.05.22-31.05.22,28/06/2022,74946,6758.26,Revenue,Total Gas & Power,
32UB,Boston Borough Council,Legal Services,1402,Subscriptions,3600,LEXIS NEXIS DD - REFERENCE DI055369M,30/06/2022,74953,795.83,Revenue,Lexis Nexis Butterworths Tolley,
32UB,Boston Borough Council,Hackney Carriage Licences,3233,Hackney Carriges Expenses,3521,LAND CHARGES 9 CHECKS,21/06/2022,74962,342,Revenue,DBS,
32UB,Boston Borough Council,Vehicle Holding Account,2206,Fuel Transport,2201,FUEL CARD SERVICES 26/06/2022,30/06/2022,74975,450.47,Revenue,Fuelcard Services,
32UB,Boston Borough Council,Vehicle Holding Account,2206,Fuel Transport,2201,FUEL CARD SERVICES 26/06/2022 VU62 HVH,30/06/2022,74977,378.82,Revenue,Fuelcard Services,
32UB,Boston Borough Council,Vehicle Holding Account,2206,Fuel Transport,2201,FUEL CARD SERVICES 26/06/2022,30/06/2022,74977,5618.97,Revenue,Fuelcard Services,
32UB,Boston Borough Council,Tf Centre Food&Fresh Produce,6225,Payments To Contractors,8002,PP UNIVERSITY OF LINCOLN INVOICE,30/06/2022,74996,30172.56,Capital,University of Lincoln,
32UB,Boston Borough Council,Leadership Team,1001,Courses And Conferences,3506,LGA ANNUAL CONFERENCE TICKETS,20/06/2022,75081,436,Revenue,,
32UB,Boston Borough Council,Marketing And Communications,1003,Publicity,3513,STAFF AWARDS BACKDROP,20/06/2022,75081,273,Revenue,,
32UB,Boston Borough Council,Marketing And Communications,1003,Professional Services,3301,SOCIAL MEDIA SCHEDULING PROGRAMME FOR SELCP,20/06/2022,75081,559.97,Revenue,,
32UB,Boston Borough Council,Personnel & Payroll,1006,Long Services Awards,1103,STAFF AWARD BADGES,20/06/2022,75081,255.6,Revenue,,
32UB,Boston Borough Council,Selcp,1017,Courses And Conferences,3506,LGA ANNUAL CONFERENCE TICKETS,20/06/2022,75081,872,Revenue,,
32UB,Boston Borough Council,Members And Mayoral,3106,Courses And Conferences,3506,LGA ANNUAL CONFERENCE TICKETS,20/06/2022,75081,1308,Revenue,,
32UB,Boston Borough Council,Bed & Breakfast,3222,Bed And Breakfast Accom Fees,3306,EMERGENCY ACCOMMODATION,20/06/2022,75081,276.25,Revenue,,
32UB,Boston Borough Council,Bed & Breakfast,3222,Bed And Breakfast Accom Fees,3306,ACCOMMODATION FOR FAMILY,20/06/2022,75081,291.67,Revenue,,
32UB,Boston Borough Council,Bed & Breakfast,3222,Bed And Breakfast Accom Fees,3306,ACCOMMODATION,20/06/2022,75081,3739.1,Revenue,,
32UB,Boston Borough Council,Bed & Breakfast,3222,Bed And Breakfast Accom Fees,3306,HOTEL ACCOMMODATION,20/06/2022,75081,7053.68,Revenue,,
32UB,Boston Borough Council,Refuse Collection,3234,Printing And Stationery,3201,TONER CARTRIDGE,20/06/2022,75081,433.97,Revenue,,
32UB,Boston Borough Council,Development Management,3306,Courses And Conferences,3506,CONFERENCE,20/06/2022,75081,1548,Revenue,,
32UB,Boston Borough Council,Leisure Pool Services,3434,Equipment Purchase,3001,AQUAFIT SPEAKER,20/06/2022,75081,293.14,Revenue,,
32UB,Boston Borough Council,Leisure Pool Services,3434,Cleaning Materials,2080,CLEANING SUPPLIES,20/06/2022,75081,412.88,Revenue,,
32UB,Boston Borough Council,Grounds Maintenance,4401,Materials,3006,CENTRAL PARK,20/06/2022,75081,773.26,Revenue,,
32UB,Boston Borough Council,Building Mtc-Public Buildings,4402,Materials,3006,CABLES,20/06/2022,75081,738.17,Revenue,,
32UB,Boston Borough Council,Vehicle Holding Account,2206,Fuel Transport,2201,FUEL CARD SERVICES 05/06/2022,05/06/2022,75096,2990.05,Revenue,Fuelcard Services,
32UB,Boston Borough Council,Vehicle Holding Account,2206,Fuel Transport,2201,FUEL CARD SERVICES 19/06/22,19/06/2022,75107,432.86,Revenue,Fuelcard Services,
32UB,Boston Borough Council,Vehicle Holding Account,2206,Fuel Transport,2201,FUEL CARD SERVICES 30/06/22,30/06/2022,75108,284.79,Revenue,Fuelcard Services,
32UB,Boston Borough Council,Vehicle Holding Account,2206,Fuel Transport,2201,FUEL CARD SERVICES 30/06/2022 VU62 HVH,30/06/2022,75109,401.66,Revenue,Fuelcard Services,
32UB,Boston Borough Council,Vehicle Holding Account,2206,Fuel Transport,2201,FUEL CARD SERVICES 30/06/2022,30/06/2022,75109,4498.17,Revenue,Fuelcard Services,
